Cogmind - Beta 17 @@@ ROGUE MODE // 2026.08.13 @ 00:04:52 Player: beep Result: Destroyed by N3-D8J(R) with Subdweller Machine Gun Performance ------------- Evolutions (0) 0 Regions Visited (2) 400 Robots Destroyed (15) 75 Value Destroyed (388) 388 Prototype IDs (2) 40 Alien Tech Used (0) 0 Bonus (0) 0 TOTAL SCORE: 903 Bonus ------- None Cogmind --------- Core Integrity 0/250 Matter 158/300 Energy 100/100 System Corruption 0% Temperature Cool (0) Movement Walking (280) Ox2 Location -10/Subcaves Parts ------- > --- POWER (1) -------- (None) > --- PROPULSION (2) --- Makeshift Leg > --- UTILITY (2) ------ High-capacity Storage Unit > --- WEAPON (2) ------- Light Cannon Light Cannon > --- INVENTORY (20) --- Light Ion Engine High-capacity Storage Unit Scrap Shield Light Cannon Peak State ------------ > --- POWER ------------ Light Nuclear Core > --- PROPULSION ------- Aluminum Leg Makeshift Leg > --- UTILITY ---------- High-capacity Storage Unit Sensor Array > --- WEAPON ----------- Light Cannon Light Cannon > --- INVENTORY -------- Light Ion Engine Aluminum Leg Aluminum Leg High-capacity Storage Unit Scrap Shield Light Cannon [Rating: 12] Favorites ----------- Power Ion Engine Engine Ion Engine Power Core Light Nuclear Core Propulsion Aluminum Leg Leg Aluminum Leg Utility Small Storage Unit Device Sensor Array Storage Small Storage Unit Processor Targeting Computer Weapon Medium Laser Energy Gun Medium Laser Energy Cannon Beam Cannon Ballistic Cannon Light Cannon Build | -11 -10 -10 ------- Run | Yrd Mat Sub Slots Evolved . | . . . Power . | . . . Propulsion . | . . . Utility . | . . . Weapon . | . . . Parts Attached 21 | 6 12 3 Power 3 | 1 2 . Engine 2 | 1 1 . Core 1 | . 1 . Reactor . | . . . Propulsion 4 | 1 2 1 Treads . | . . . Leg 4 | 1 2 1 Wheel . | . . . Hover . | . . . Flight . | . . . Utility 8 | 2 4 2 Device 2 | . 1 1 Storage 5 | 2 2 1 Processor 1 | . 1 . Hackware . | . . . Protection . | . . . Artifact . | . . . Weapon 6 | 2 4 . Energy Gun 2 | 2 . . Energy Cannon 1 | . 1 . Ballistic Gun . | . . . Ballistic Cannon 3 | . 3 . Launcher . | . . . Special Weapon . | . . . Impact Weapon . | . . . Slashing Weapon . | . . . Piercing Weapon . | . . . Special Melee Weapon . | . . . Unidentified Prototypes . | . . . Parts Lost 3 | . . 3 Power 1 | . . 1 Propulsion 1 | . . 1 Utility 1 | . . 1 Weapon . | . . . Highest Loss Streak 3 | . . 3 To Critical Strikes . | . . . Average Backups 5 | 3 5 4 Power 1 | . 1 1 Propulsion 2 | 2 2 . Utility 1 | . 1 2 Weapon . | . 1 1 Tool/Special . | . . . Unused Backups 12 | . 7 5 Power 1 | . . 1 Propulsion 7 | . 5 2 Utility 2 | . 1 1 Weapon 2 | . 1 1 Tool/Special . | . . . Average Slot Usage (%) 93 | . 93 97 Engine 7 | . 8 . Core 6 | . 5 14 Leg 26 | . 25 27 Device 4 | . 3 11 Storage 18 | . 19 14 Processor 4 | . 4 . Energy Gun 11 | . 12 . Energy Cannon 5 | . 6 . Ballistic Cannon 7 | . 4 28 Peak Build Rating 12 | 6 9 12 Average Rating 7 | 4 7 10 On Entrance 5 | . 6 9 Avg Prop Armor Cover (%) . | . . . Naked Turns . | . . . Heaviest Build 52 | 19 51 52 Greatest Support 30 | 10 20 30 Greatest Overweight (x) 2 | 1 2 2 Average Overweight (x) . | . . 1 Largest Inventory Capacity 20 | 8 20 20 Average Capacity 14 | 7 14 20 Most Carried 8 | 5 8 8 Average Carried 5 | 3 5 5 Final Capacity 20 | 8 20 20 Final Carried 6 | 5 6 5 Class Distribution -------------------- 100% | Mutant Dominant Class ---------------- Mutant | -10/Materials Mutant | -10/Subcaves Resources | -11 -10 -10 ----------- Run | Yrd Mat Sub Matter Collected 335 | 260 75 . Remotely . | . . . Salvage Created 799 | 68 658 73 Parts 27 | 2 20 5 Haulers Intercepted . | . . . Recyclers Shooed 1 | . 1 . Parts Field Recycled . | . . . Retrieved Matter . | . . . Parts Self-Destructed 1 | . . 1 Prevented . | . . . Parts Restored . | . . . Kills | -11 -10 -10 ------- Run | Yrd Mat Sub Combat Hostiles Destroyed 9 | . 7 2 Guns 1 | . 1 . Cannons 5 | . 3 2 AOE 1 | . 1 . Classes Destroyed 4 | 1 2 1 Worker 1 | . 1 . Recycler 5 | 1 4 . Grunt 7 | . 7 . Subdweller 2 | . . 2 Best Kill Streak 4 | 1 4 1 Combat Bots Only 2 | . 2 1 Max Kills in Single Turn 1 | 1 1 1 Gunslinging . | . . . Exploded 1 | . 1 . Melee . | . . . Uniques/NPCs Destroyed . | . . . Combat | -11 -10 -10 -------- Run | Yrd Mat Sub Hostile Shots Fired 67 | . 41 26 Missed 18 | . 10 8 Hits 49 | . 31 18 Projectile 49 | . 31 18 Damage Taken 860 | . 419 441 Core 250 | . 117 133 Absorbed by Shields . | . . . Core Remaining (%) 100 | 100 . . Volleys Fired 50 | 4 39 7 Largest 2 | 2 2 2 Hottest 110 | 90 110 60 Shots Fired 92 | 8 70 14 Gun 52 | 8 44 . Cannon 40 | . 26 14 Launcher . | . . . Special . | . . . Kinetic 18 | . 4 14 Thermal 61 | 4 57 . Explosive . | . . . Electromagnetic 13 | 4 9 . Robot Hit Streak 6 | 2 6 5 Robot Miss Streak 4 | 3 4 2 Penetration Max . | . . . Secondary Targets . | . . . Shots Hit Robots 57 | 3 44 10 Core Hits 21 | 2 17 2 Critical Kills . | . . . Critical Parts Destroyed . | . . . Critical Strikes 4 | 1 3 . Burn 4 | 1 3 . Melee Attacks . | . . . Impact . | . . . Slashing . | . . . Piercing . | . . . Sneak Attacks . | . . . Combat Hostiles . | . . . Follow-up Attacks . | . . . Damage Inflicted 822 | 36 667 119 Guns 355 | 36 319 . Cannons 437 | . 318 119 Explosions 30 | . 30 . Melee . | . . . Ramming . | . . . Kinetic 174 | . 55 119 Thermal 598 | 24 574 . Explosive . | . . . Electromagnetic 50 | 12 38 . Impact . | . . . Slashing . | . . . Piercing . | . . . Highest Corruption . | . . . Average Corruption . | . . . Corruption Purged . | . . . Corruption Blocked . | . . . Overload Shots . | . . . Overflow Damage 6 | . 6 . Projectiles 6 | . 6 . Explosions . | . . . Melee . | . . . Knockbacks 3 | . 2 1 Impact . | . . . Kinetic 3 | . 2 1 Secondary . | . . . Self-Inflicted Damage . | . . . Shots . | . . . Rammed . | . . . Targets Rammed . | . . . Kicked . | . . . Crushed . | . . . Highest Temperature 348 | 60 348 . Average Temperature 85 | 30 90 . Received Heat Transfer 366 | . 243 123 Siege Activations . | . . . Martial Activations . | . . . Shielding Activations . | . . . Robots Disrupted . | . . . Combat Hostiles . | . . . Robots Corrupted . | . . . Combat Hostiles . | . . . Parts Fried . | . . . Impact Corruptions . | . . . Robots Melted 2 | . 2 . Combat Hostiles 2 | . 2 . Parts Melted 6 | . 6 . Heat Transferred 1826 | 148 1678 . Parts Sabotaged . | . . . Parts Stolen . | . . . Parts Stripped . | . . . Power Chain Reactions 1 | . 1 . Alert | -11 -10 -10 ------- Run | Yrd Mat Sub Maximum Alert Level . | . . . Low Security (%) 100 | 100 100 . Level 1 . | . . . Level 2 . | . . . Level 3 . | . . . Level 4 . | . . . Level 5 . | . . . High Security . | . . . Max Security . | . . . Peak Influence 51 | 5 51 . Initial . | . . . Average 9 | . 9 . Influence Increases 234 | 5 229 . Destroy 0b10 Robot/C 140 | . 140 . Destroy 0b10 Robot/NC 30 | 5 25 . Destroy Leader 30 | . 30 . Successful Hack 12 | . 12 . Destroy Structure 7 | . 7 . Lose Combat Pursuer 15 | . 15 . Influence Decreases 234 | 5 229 . Time Decay 234 | 5 229 . Squads Dispatched 1 | . 1 . Investigation 1 | . 1 . Extermination . | . . . Reinforcement . | . . . Assault . | . . . Garrison . | . . . Intercept . | . . . Searches Triggered . | . . . Construction Impeded . | . . . Haulers Reinforced . | . . . Active Scanning Responses . | . . . Cargo Convoy Interrupts . | . . . Stealth | -11 -10 -10 --------- Run | Yrd Mat Sub Distress Signals 1 | . 1 . Communications Jammed . | . . . Distress Signals . | . . . Times Spotted 29 | . 20 9 Peak Tracking Total 7 | . 4 7 Tactical Retreats 1 | . 1 . Traps | -11 -10 -10 ------- Run | Yrd Mat Sub Traps Triggered 1 | . 1 . Indirectly . | . . . Trap Hack Attempts . | . . . Triggered . | . . . Disarmed . | . . . Reprogrammed . | . . . Reused . | . . . Traps Extracted . | . . . Installed . | . . . Triggered . | . . . Machines | -11 -10 -10 ---------- Run | Yrd Mat Sub Machines Disabled . | . . . Max in Single Turn . | . . . Machines Repaired . | . . . Machines Dismantled . | . . . Machines Sabotaged . | . . . Overloaded Fab Kills . | . . . Hacking | -11 -10 -10 --------- Run | Yrd Mat Sub Machines Accessed 3 | . 3 . Terminals 3 | . 3 . Fabricators . | . . . Repair Stations . | . . . Recycling Units . | . . . Scanalyzers . | . . . Garrison Access . | . . . Total Hacks 7 | . 7 . Successful 5 | . 5 . Failed 2 | . 2 . Catastrophic . | . . . Database Lockouts . | . . . Manual . | . . . Terminals 7 | . 7 . Fabricators . | . . . Repair Stations . | . . . Recycling Units . | . . . Scanalyzers . | . . . Garrison Access . | . . . Terminal Hacks 5 | . 5 . Prototype ID Bank 1 | . 1 . Emergency Access Points 1 | . 1 . Locate Traps 1 | . 1 . Recall Investigation 1 | . 1 . Zone Layout 1 | . 1 . Fabricator Hacks . | . . . Repair Station Hacks . | . . . Recycling Unit Hacks . | . . . Scanalyzer . | . . . Garrison Access Hacks . | . . . Unauthorized Hacks . | . . . Terminals . | . . . Fabricators . | . . . Repair Stations . | . . . Recycling Units . | . . . Scanalyzers . | . . . Garrison Access . | . . . Data Cores Recovered . | . . . Used . | . . . Hacking Detections 3 | . 3 . Full Trace Events 1 | . 1 . Feedback Events . | . . . Feedback Blocked . | . . . Robot Schematics Acquired . | . . . Robots Built . | . . . Authchips . | . . . Time . | . . . Total Robot Build Rating . | . . . Part Schematics Acquired . | . . . Parts Built . | . . . Authchips . | . . . Time . | . . . Total Part Build Rating . | . . . Part Studies Acquired . | . . . Parts Repaired . | . . . Time . | . . . Parts Recycled . | . . . Recycled Matter . | . . . Retrieved Matter . | . . . Retrieved Components . | . . . Parts Scanalyzed . | . . . Part Schematics Acquired . | . . . Parts Damaged . | . . . Bothacking | -11 -10 -10 ------------ Run | Yrd Mat Sub Used RIF Installer . | . . . Robots Hacked . | . . . Non-combat . | . . . Combat . | . . . Robot Hacks Applied . | . . . Relay Couplers Released . | . . . Fabnet Peak Effective % . | . . . Robots Rewired . | . . . Allies Hacked . | . . . Hacks Repelled . | . . . Allies | -11 -10 -10 -------- Run | Yrd Mat Sub Total Allies . | . . . Largest Group . | . . . Highest-Rated Group . | . . . Highest-Rated Ally . | . . . Total Orders . | . . . Ally Attacks . | . . . Total Damage . | . . . Kills . | . . . Allies Corrupted . | . . . Allies Melted . | . . . Intel | -11 -10 -10 ------- Run | Yrd Mat Sub Active Infowar (turns) 474 | . 313 161 Sensors 474 | . 313 161 Robot Analysis Total . | . . . Derelict Logs Recovered . | . . . Drone Launches . | . . . Drone Recoveries . | . . . Exploration | -11 -10 -10 ------------- Run | Yrd Mat Sub Turns Passed 1627 | 96 1349 182 Spaces Moved 731 | 45 619 67 Core 8 | 8 . . Treads . | . . . Legs 723 | 37 619 67 Wheels . | . . . Hover . | . . . Flight . | . . . Fastest Speed 50 | 50 120 200 Average Speed 186 | 158 184 224 Slowest Speed 280 | 190 260 280 Overloaded Moves . | . . . Propulsion Burnouts . | . . . Robots Hopped . | . . . Potential Cave-ins . | . . . Cave-ins Triggered . | . . . Exploration Rate (%) 30 | 4 75 11 Regions Visited 2 Branch Regions 1 Pre-discovered Areas . | . . . Known Exits Taken . | . . . Unknown Exits Taken 2 | 1 1 . Scrap Searched . | . . . Spaces Dug . | . . . Terrain Destroyed 5 | . 5 . Melee . | . . . Projectile . | . . . AOE 5 | . 5 . Terrain Rammed . | . . . Walls Destroyed . | . . . Machines Disabled . | . . . Actions | -11 -10 -10 --------- Run | Yrd Mat Sub Total 912 | 59 765 88 Wait 62 | . 58 4 Move 729 | 44 618 67 Hop . | . . . Pick Up 24 | 5 17 2 Fast Attach 12 | 6 6 . Attach 8 | . 5 3 Detach 2 | . . 2 Swap 2 | . 2 . Drop 23 | . 20 3 Fire 50 | 4 39 7 Melee . | . . . Ram . | . . . Kick . | . . . Crush . | . . . Escape Stasis . | . . . Rewire . | . . . Trap . | . . . Miscellaneous . | . . . Route ------- -11/Scrapyard -10/Materials (discovered 3 exits: [*Mat] / [*Min] / [*Sub]) -10/Subcaves (discovered 1 exit: [*Mat]) History --------- Turn | Location | Event 18 | -11/Scrapyard | Discovered new exit (range 15) 97 | -11/Scrapyard | Entered Materials 307 | -10/Materials | Build established: Mutant 356 | -10/Materials | Discovered new exit (range 16) 1216 | -10/Materials | Discovered new exit (range 7) 1415 | -10/Materials | Discovered new exit (range 11) 1446 | -10/Materials | Entered Subcaves 1493 | -10/Subcaves | Shifting Twisted Machinery released Mak. Leg 1513 | -10/Subcaves | Discovered new exit (range 8) 1587 | -10/Subcaves | Ambushed by swarm of Subdwellers 1613 | -10/Subcaves | Core integrity fell below 50% 1622 | -10/Subcaves | Core integrity fell below 20% 1628 | -10/Subcaves | Destroyed by N3-D8J(R) with Subdweller Machine Gun Last Messages --------------- 01516_ Dropped Aluminum Leg. 01524_ Subatomizers dissect the Aluminum Leg. 01586_ GQ-1ME(h) suffers critical hit (Destroy). A mess of Twisted Machinery falls from the cavern ceiling. ZK-GBV(R) comes tumbling into view. 01587_ GQ-1ME(h): "The Subs are coming!" 01589_ YS-Z9I(R) emerges from the Twisted Machinery. 01591_ V7-88G(g): "Sorry we're late! Had another grouchy Sub to deal with. Who's the new fellow?" 01594_ ZK-GBV(R) destroyed. 01601_ 04-Z97(g) destroyed. 01603_ YS-Z9I(R) suffers critical hit (Burn). 01604_ V7-88G(g) destroyed. 01608_ GQ-1ME(h) suffers critical hit (Destroy). 01608_ GQ-1ME(h) destroyed. 01612_ CK-8YJ(R) knocked back. 01613_ Sensor Array destroyed. 01619_ Aluminum Leg destroyed. 01620_ Lgt. Nuclear Core destroyed. 01621_ CK-8YJ(R) destroyed. Map ----- +----------------------------------------------------+ | ?????????????????????????????????????????????????? | | ?????????????????????????????????????????????????? | | ?????????????????????????????????????????????????? | | ?????????????????????????????????????????????????? | | ?????????????????????????????????????????????????? | | ?????????????????????????????????????????????????? | | ?????????????????????????????????????????????????? | | ?????????????????????????????????????????????????? | | ?????????????????????????????????????????????????? | | ?????????????????????????????????????????????????? | | ?????????????????????????????????????????????????? | | ?????????????????????????????????????????????????? | | "#?????????####??????????????????????????????????? | | ????????### ##?????????????????????????????????? | | ???????##"""" #?????????????????????????????????? | | ???????##""" " #?????????????????????????????????? | | ?##???## ##????????????????????????????????? | | ## ####"" #???????????????##???????????????? | | # ## " [ #?????????????? #???????????????? | | ### [!=% " #####????????? ##???????????????? | | "" ## " =% " && ##???????# ##??????????????? | | ?# " " %= """!%! #?????? #??????????????? | | ## [ ##![ ##????? #??????????????? | | ### ## ####R ####??# #??????????????? | | ## ####??# R ### ! #??????????????? | | ### ## ##?????# R!==@!%% #??????????????? | | ?# ####??????# RR%!&%= ;# % #?????????????? | | ## ##?????????### R### &! ##??????????????????? | | ### #???????????#####?# % ????????????????? | | #????????????????? ?????????????? | | ###?????????????????! ?????????????? | | #???????????????????% ????????????? | | #?????????????????? #???????????? | | ## #????????????????? #######???????????? | | ?# #???????????????? #?????????????????? | | ?# #??????????????? ?????????????????? | | ? ?????????????? ##????????????????? | | ?# ????????????? #?????????????????? | | ?## ######????????????# ## #?????????????????? | | ???###??????????????????###??#???????????????????? | | ?????????????????????????????????????????????????? | | ?????????????????????????????????????????????????? | | ?????????????????????????????????????????????????? | | ?????????????????????????????????????????????????? | | ?????????????????????????????????????????????????? | | ?????????????????????????????????????????????????? | | ?????????????????????????????????????????????????? | | ?????????????????????????????????????????????????? | | ?????????????????????????????????????????????????? | | ?????????????????????????????????????????????????? | +----------------------------------------------------+ Best States ------------- Heat Dissipation 25 Energy Generation 14 Energy Capacity 250 Matter Stores 300 Matter Capacity 300 Sight Range 16 Robot Scan Range 14 Terrain Scan Density 10 Evasion (%) 55 Targeting Accuracy 5 Item Schematics ----------------- None Robot Schematics ------------------ None Fabricated ------------ Nothing Repaired ---------- Nothing Studied --------- None Alien Tech Used ----------------- None Achievements -------------- It's Just You One Hack Too Far Challenges ------------ None Game ------ Seed LightpackAlertVibroblade Manual? 0 Play Time 00:25:01 Cumulative 1.7 hours Start 2026.08.12 @ 23:38:57 End 2026.08.13 @ 00:04:52 Sessions 1 Manual Loads 0 Difficulty Rogue Special Mode None Game No. 5 Rogue 5 Adventurer 0 Explorer 0 Win Type - Total 0 Types 0/0/0/0/0/0/0/0/0/0 Lore% 0 Gallery% 3 Achievement% 3 Wizard Run 0 Options --------- Layout 1 ASCII 0 Keyboard 1 Movement Arrows Keybinds 1 Fullscreen 2 Font 32/SmallcapsGlow Map View 77x35 Zoom Use 0% Tactical HUD 1 Map Filters NONE Filters NONE Steam 1 RUN: 039047c3-3abe-45dd-ad4a-e1b66fb2c84a